fUST/lending_fUST_20240131
["ID","MTS","AMOUNT","RATE_DAILY","PERIOD"]
[313020516,1706634046978,-500.0,0.00039178,31]
[313020517,1706634047002,-500.0,0.00039178,31]
[313020518,1706634047026,-2212.01,0.00039178,31]
[313020519,1706634047051,-504.04931601,0.00039178,31]
[313020520,1706634047077,-500.0,0.00039178,31]
[313020521,1706634047101,-500.0,0.00039178,31]
[313020522,1706634047126,-1859.64,0.00039178,31]
[313020523,1706634047153,-500.0,0.00039178,31]
[313020524,1706634047178,-500.0,0.00039178,31]
[313020525,1706634047202,-1069.47,0.00039178,31]
[313020526,1706634047227,-6432.64,0.00039178,31]
[313020527,1706634047252,-5262.56,0.00039178,31]
[313020528,1706634047276,-500.0,0.00039178,31]
[313020529,1706634047304,-500.0,0.00039178,31]
[313020530,1706634047329,-6125.96,0.00039178,31]
[313020531,1706634047353,-2387.42,0.00039178,31]
[313020532,1706634047377,-500.0,0.00039178,31]
[313020533,1706634047400,-500.0,0.00039178,31]
[313020534,1706634047425,-500.0,0.00039178,31]
[313020535,1706634047450,-2705.67,0.00039178,31]
[313020536,1706634047474,-500.0,0.00039178,31]
[313020537,1706634047498,-3315.03,0.00039178,31]
[313020538,1706634047522,-500.0,0.00039178,31]
[313020539,1706634047547,-500.0,0.00039178,31]
[313020540,1706634047656,-1173.28,0.00039178,31]
[313020541,1706634047680,-2165.8,0.00039178,31]
[313020542,1706634047704,-500.0,0.00039178,31]
[313020543,1706634047728,-500.0,0.00039178,31]
[313020544,1706634047753,-500.0,0.00039178,31]
[313020545,1706634047777,-5133.18,0.00039178,31]
[313020546,1706634047803,-500.0,0.00039178,31]
[313020547,1706634047827,-500.0,0.00039178,31]
[313020548,1706634047852,-500.0,0.00039178,31]
[313020549,1706634047876,-558.27,0.00039178,31]
[313020550,1706634047900,-3571.91,0.00039178,31]
[313020551,1706634047930,-500.0,0.00039178,31]
[313020552,1706634047955,-845.03,0.00039178,31]
[313020553,1706634047981,-1115.07,0.00039178,31]
[313020554,1706634048007,-500.0,0.00039178,31]
[313020555,1706634048036,-500.0,0.00039178,31]
[313020556,1706634048062,-955.23,0.00039178,31]
[313020557,1706634048086,-3218.23,0.00039178,31]
[313020558,1706634048112,-551.67,0.00039178,31]
[313020559,1706634048139,-500.0,0.00039178,31]
[313020560,1706634048165,-878.3,0.00039178,31]
[313020561,1706634048190,-500.0,0.00039178,31]
[313020562,1706634048214,-500.0,0.00039178,31]
[313020563,1706634048241,-500.0,0.00039178,31]
[313020564,1706634048272,-500.0,0.00039452,31]
[313020565,1706634048301,-500.0,0.00039452,31]
[313020566,1706634048327,-500.0,0.00039452,31]
[313020567,1706634048350,-500.0,0.00039452,31]
[313020568,1706634048373,-500.0,0.00039452,31]
[313020569,1706634048396,-500.0,0.00039452,31]
[313020570,1706634048419,-500.0,0.00039452,31]
[313020571,1706634048443,-509.3,0.00039452,31]
[313020572,1706634048467,-500.0,0.00039452,31]
[313020573,1706634048492,-500.0,0.00039452,31]
[313020574,1706634048516,-500.0,0.00039452,31]
[313020575,1706634048541,-451.05094652,0.00039452,31]
[313020576,1706634048564,-500.0,0.00039452,31]
[313020577,1706634048588,-500.0,0.00039452,31]
[313020578,1706634048611,-508.45,0.00039452,31]
[313020579,1706634048634,-500.0,0.00039452,31]
[313020580,1706634048657,-500.0,0.00039452,31]
[313020581,1706634048680,-500.0,0.00039452,31]
[313020582,1706634048703,-4166.66,0.00039452,31]
[313020583,1706634048727,-885.04,0.00039452,31]
[313020584,1706634048750,-500.0,0.00039452,31]
[313020585,1706634048774,-500.0,0.00039452,31]
[313020586,1706634048798,-500.0,0.00039452,31]
[313020587,1706634048821,-500.0,0.00039452,31]
[313020588,1706634048844,-500.0,0.00039452,31]
[313020589,1706634048868,-500.0,0.00039452,31]
[313020590,1706634048891,-500.0,0.00039452,31]
[313020591,1706634048913,-500.0,0.00039452,31]
[313020592,1706634048937,-521.42235908,0.00039452,31]
[313020593,1706634048961,-2093.34,0.00039452,31]
[313020595,1706634048985,-500.0,0.00039452,31]
[313020596,1706634049008,-500.0,0.00039452,31]
[313020597,1706634049036,-500.0,0.00039452,31]
[313020598,1706634049062,-503.47,0.00039452,31]
[313020599,1706634049089,-500.0,0.00039452,31]
[313020600,1706634049116,-500.0,0.00039452,31]
[313020601,1706634049143,-500.0,0.00039452,31]
[313020602,1706634049170,-902.11,0.00039452,31]
[313020603,1706634049195,-500.0,0.00039452,31]
[313020604,1706634049220,-198.33710425,0.00039452,31]
[313020605,1706634049246,-510.42774354,0.00039452,31]
[313020606,1706634049353,-500.0,0.00039452,31]
[313020607,1706634049379,-662.13,0.00039452,31]
[313020608,1706634049404,-500.0,0.00039452,31]
[313020609,1706634049429,-500.0,0.00039452,31]
[313020610,1706634049454,-606.25,0.00039452,31]
[313020611,1706634049479,-500.0,0.00039452,31]
[313020612,1706634049503,-500.0,0.00039452,31]
[313020613,1706634049528,-500.0,0.00039452,31]
[313020614,1706634049555,-225.88853616,0.00039452,31]
[313020615,1706634049580,-500.0,0.00039452,31]
[313020616,1706634049603,-500.0,0.00039452,31]
[313020617,1706634049628,-1512.53,0.00039452,31]
[313020618,1706634049652,-500.0,0.00039452,31]
[313020619,1706634049675,-500.0,0.00039452,31]
[313020620,1706634049699,-500.0,0.00039452,31]
[313020621,1706634049722,-793.7,0.00039452,31]
[313020622,1706634049746,-303.43670063,0.00039452,31]
[313020623,1706634049769,-5768.58,0.00039452,31]
[313020624,1706634049793,-500.0,0.00039452,31]
[313020625,1706634049816,-1760.84,0.00039452,31]
[313020626,1706634049839,-987.63,0.00039452,31]
[313020627,1706634049862,-500.0,0.00039452,31]
[313020628,1706634049885,-193.41239296,0.00039452,31]
[313020629,1706634049908,-500.0,0.00039452,31]
[313020630,1706634049931,-500.0,0.00039452,31]
[313020631,1706634049956,-500.0,0.00039452,31]
[313020632,1706634049980,-4747.98,0.00039452,31]
[313020633,1706634050004,-500.0,0.00039452,31]
[313020634,1706634050028,-523.11636644,0.00039452,31]
[313020635,1706634050056,-2733.12,0.00039452,31]
[313020636,1706634050080,-518.7,0.00039452,31]
[313020637,1706634050105,-500.0,0.00039452,31]
[313020638,1706634050130,-18938.04,0.00039452,31]
[313020639,1706634050156,-500.0,0.00039452,31]
[313020640,1706634050181,-500.0,0.00039452,31]
[313020641,1706634050207,-500.0,0.00039452,31]
[313020642,1706634050233,-500.0,0.00039452,31]
[313020643,1706634050266,-500.0,0.00039452,31]
[313020644,1706634050292,-500.0,0.00039452,31]
[313020645,1706634050316,-500.0,0.00039452,31]
[313020646,1706634050340,-500.0,0.00039452,31]
[313020647,1706634050365,-2455.02,0.00039452,31]
[313020648,1706634050390,-891.86,0.00039452,31]
[313020649,1706634050415,-500.0,0.00039452,31]
[313020650,1706634050443,-500.0,0.00039452,31]
[313020651,1706634050468,-16305.24,0.00039452,31]
[313020652,1706634050493,-7706.38,0.00039452,31]
[313020653,1706634050518,-500.0,0.00039452,31]
[313020654,1706634050543,-1340.04,0.00039452,31]
[313020655,1706634050567,-1327.77,0.00039452,31]
[313020656,1706634050591,-330.00509799,0.00039452,31]
[313020657,1706634050616,-500.0,0.00039452,31]
[313020658,1706634050643,-1374.0,0.00039452,31]
[313020659,1706634050668,-2826.69,0.00039452,31]
[313020660,1706634050692,-500.0,0.00039452,31]
[313020661,1706634050718,-500.0,0.00039452,31]
[313020662,1706634050742,-2406.14,0.00039452,31]
[313020663,1706634050766,-500.0,0.00039452,31]
[313020664,1706634050790,-500.0,0.00039452,31]
[313020665,1706634050814,-500.0,0.00039452,31]
[313020666,1706634050839,-500.0,0.00039452,31]
[313020667,1706634050864,-449.62735032,0.00039452,31]
[313020668,1706634050889,-2212.01,0.00039452,31]
[313020669,1706634051000,-500.0,0.00039452,31]
[313020670,1706634051026,-500.0,0.00039452,31]
[313020671,1706634051052,-1859.64,0.00039452,31]
[313020672,1706634051078,-500.0,0.00039452,31]
[313020673,1706634051102,-500.0,0.00039452,31]
[313020674,1706634051127,-1069.47,0.00039452,31]
[313020675,1706634051153,-6432.64,0.00039452,31]
[313020676,1706634051186,-3316.06328758,0.00039452,31]
[313020677,1706634063226,250.0,0.00019582,2]
[313020681,1706634127988,1507.46724621,0.00019563,2]
[313020682,1706634128012,23392.53275379,0.00019563,2]
[313020707,1706634196149,836.138924,0.0001954,2]
[313020717,1706634240482,741.84835212,0.0002043,2]
[313020718,1706634242488,741.84835209,0.00020433,2]
[313020719,1706634244568,741.84835209,0.00020437,2]
[313020720,1706634246531,741.84835209,0.0002044,2]
[313020721,1706634248467,741.84835209,0.00020443,2]
[313020738,1706634305451,620.23996484,0.000205,2]
[313020740,1706634308606,353.79,0.00020498,3]
[313020741,1706634309216,1470.26572584,0.000205,2]
[313020742,1706634310689,199.46539492,0.000205,2]
[313020743,1706634311185,167.24069426,0.000205,2]
[313020745,1706634312976,3750.33849076,0.000205,2]
[313020746,1706634313491,155.00620025,0.000205,2]
[313020748,1706634318566,155.00620025,0.000205,2]
[313020749,1706634318972,605.81,0.00020498,3]
[313020752,1706634321714,562.3258598,0.000205,2]
[313020753,1706634323209,1351.06373888,0.0001538,2]
[313020754,1706634324415,155.00620025,0.000205,2]
[313020755,1706634325819,340.9516158,0.000205,2]
[313020756,1706634326075,295.30186863,0.000205,2]
[313020757,1706634326257,1581.46279222,0.000205,2]
[313020759,1706634327856,589.1714927,0.000205,2]
[313020760,1706634329722,155.00620025,0.000205,2]
[313020762,1706634330234,504.84,0.00020498,3]
[313020764,1706634331166,1996.16717164,0.000205,2]
[313020765,1706634331386,155.00620025,0.000205,2]
[313020766,1706634332647,175.43157375,0.000205,2]
[313020768,1706634335429,155.00620025,0.000205,2]
[313020769,1706634335836,155.00620025,0.000205,2]
[313020770,1706634337732,1697.98790078,0.000205,2]
[313020771,1706634338913,155.00620025,0.000205,2]
[313020772,1706634339117,329.99464709,0.000205,2]
[313020773,1706634339425,260.67799851,0.000205,2]
[313020774,1706634339913,500.0,0.000205,2]
[313020775,1706634341430,155.00620025,0.000205,2]
[313020776,1706634341704,3653.78430053,0.000205,2]
[313020777,1706634341838,420.7,0.00020497,3]
[313020779,1706634344314,1243.97055445,0.000205,2]
[313020781,1706634346077,1743.33360655,0.000205,2]
[313020782,1706634346165,1295.2641633,0.000205,2]
[313020783,1706634346612,155.00620025,0.000205,2]
[313020784,1706634346998,161.25377487,0.000205,2]
[313020785,1706634348189,2041.75712479,0.000205,2]
[313020786,1706634348328,904.83318342,0.000205,2]
[313020787,1706634348727,3326.84002864,0.000205,2]
[313020788,1706634350722,171.16808954,0.000205,2]
[313020789,1706634351308,262.71950685,0.000205,2]
[313020790,1706634353032,350.59,0.00020497,3]
[313020792,1706634353500,261.45798965,0.000205,2]
[313020793,1706634353642,3490.39781052,0.000205,2]
[313020794,1706634354046,155.15271814,0.000205,2]
[313020795,1706634354382,155.00620025,0.000205,2]
[313020796,1706634356142,4819.97769138,0.000205,2]
[313020797,1706634356782,556.20773545,0.000205,2]
[313020798,1706634358821,155.00620025,0.000205,2]
[313020802,1706634365147,292.15,0.00020495,3]
[313020803,1706634366740,3326.84002864,0.000203,2]
[313020804,1706634370298,3490.39781052,0.00020095,2]
[313020807,1706634376356,243.46,0.00020494,3]
[313020809,1706634383628,3490.39781052,0.00020091,2]
[313020810,1706634384728,3326.84002864,0.00020296,2]
[313020812,1706634387664,202.89,0.00020493,3]
[313020814,1706634393215,155.00620025,0.000205,2]
[313020816,1706634394975,18927.35300975,0.000205,2]
[313020817,1706634396373,589.1714927,0.000205,2]
[313020818,1706634399157,169.07,0.00020491,3]
[313020819,1706634400772,1581.46279222,0.000205,2]
[313020821,1706634402735,1149.27172358,0.00020296,2]
[313020822,1706634405263,20899.05725792,0.000205,2]
[313020823,1706634405635,2033.97237071,0.00020091,2]
[313020826,1706634411156,845.38,0.00020491,3]
[313020828,1706634411661,1996.16717164,0.000205,2]
[313020829,1706634412949,20925.73501298,0.000205,2]
[313020831,1706634414232,562.3258598,0.000205,2]
[313020832,1706634414577,1743.33360655,0.000205,2]
[313020833,1706634414957,159.29949,0.00019974,2]
[313020834,1706634415626,329.99464709,0.000205,2]
[313020835,1706634415944,155.00620025,0.000205,2]
[313020836,1706634422847,1243.97055445,0.000205,2]
[313020837,1706634423109,155.00620025,0.000205,2]
[313020838,1706634424266,21712.69652796,0.000205,2]
[313020839,1706634425343,155.00620025,0.000205,2]
[313020840,1706634425512,161.25377487,0.000205,2]
[313020841,1706634425949,260.67799851,0.000205,2]
[313020842,1706634426114,19726.57954333,0.000205,2]
[313020843,1706634426210,3044.82025044,0.000205,2]
[313020844,1706634426558,181.23168733,0.000205,2]
[313020845,1706634427252,171.16808954,0.000205,2]
[313020846,1706634428244,562.3258598,0.000205,2]
[313020847,1706634428718,2041.75712479,0.000205,2]
[313020848,1706634429727,37009.8984698,0.000205,2]
[313020849,1706634431744,527.38076305,0.000205,2]
[313020851,1706634432583,1811.14261558,0.000205,2]
[313020853,1706634435591,243.47632395,0.000205,2]
[313020854,1706634435963,189.56787943,0.000205,2]
[313020855,1706634436351,19889.78216214,0.000205,2]
[313020856,1706634436580,155.15271814,0.000205,2]
[313020857,1706634436822,1242.53676009,0.000205,2]
[313020859,1706634439335,155.01550127,0.000205,2]
[313020860,1706634439941,239.42188687,0.000205,2]
[313020861,1706634441114,309.97513411,0.000205,2]
[313020862,1706634442189,2651.47624949,0.000205,2]
[313020863,1706634442252,19196.03843237,0.00020295,2]
[313020864,1706634442575,181.23168733,0.000205,2]
[313020865,1706634442692,2037.17175514,0.000205,2]
[313020866,1706634443240,204.52488288,0.000205,2]
[313020867,1706634443509,160.90765283,0.000205,2]
[313020868,1706634444195,1586.35135048,0.000205,2]
[313020869,1706634446233,673.60255972,0.000205,2]
[313020870,1706634447727,36980.23997699,0.000205,2]
[313020871,1706634447769,527.38076305,0.000205,2]
[313020873,1706634450333,2005.37316766,0.000205,2]
[313020874,1706634453588,243.47632395,0.000205,2]
[313020875,1706634454550,155.66966226,0.000205,2]
[313020876,1706634454829,2005.37316766,0.000205,2]
[313020878,1706634464204,1586.35135048,0.000205,2]
[313020879,1706634467756,527.59200148,0.000205,2]
[313020886,1706634473598,243.47632395,0.000205,2]
[313020887,1706634480443,550.44,0.00020493,3]
[313020899,1706634508869,19889.78216214,0.000205,2]
[313020901,1706634520663,83813.3038538,0.000205,2]
[313020902,1706634523059,181.23168733,0.000205,2]
[313020923,1706634619223,418.069462,0.00019506,2]
[313020982,1706634632959,-155.01550127,0.00020501,2]
[313020983,1706634632972,-261.29004679,0.00020501,2]
[313020984,1706634632986,-3450.82437126,0.00020501,2]
[313020985,1706634633002,-155.01086192,0.00020501,2]
[313020986,1706634633014,-18908.82589868,0.00020501,2]
[313020987,1706634633024,-382.68921557,0.00020501,2]
[313020988,1706634633034,-1991.4231386,0.00020501,2]
[313020989,1706634633045,-20914.12256812,0.00020501,2]
[313020990,1706634633058,-376.33954082,0.00020501,2]
[313020991,1706634633070,-161.38944257,0.00020501,2]
[313020992,1706634633082,-2243.31161673,0.00020501,2]
[313020993,1706634633094,-1586.35135048,0.00020502,2]
[313020994,1706634633106,-2005.37316766,0.00020502,2]
[313020995,1706634633116,-589.1714927,0.00020503,2]
[313020996,1706634633127,-155.01550127,0.00020504,2]
[313020997,1706634633139,-20899.05725792,0.00020504,2]
[313020998,1706634633150,-295.74422373,0.00020505,2]
[313020999,1706634633161,-155.01550127,0.00020505,2]
[313021000,1706634633172,-155.02480238,0.00020505,2]
[313021001,1706634633184,-432.57986631,0.00020505,2]
[313021002,1706634633195,-174.62917015,0.00020505,2]
[313021003,1706634633206,-155.03875603,0.00020505,2]
[313021004,1706634633217,-155.02480313,0.00020505,2]
[313021005,1706634633228,-155.272863,0.00020505,2]
[313021006,1706634633240,-1696.96318048,0.00020505,2]
[313021007,1706634633251,-156.58559388,0.00020505,2]
[313021008,1706634633263,-297.37206321,0.00020505,2]
[313021009,1706634633274,-387.52215877,0.00020505,2]
[313021010,1706634633285,-1294.5477549,0.00020505,2]
[313021011,1706634633297,-903.98962863,0.00020505,2]
[313021012,1706634633308,-628.41416648,0.00020505,2]
[313021013,1706634633319,-167.61349112,0.00020506,2]
[313021014,1706634633331,-199.22743778,0.00020506,2]
[313021015,1706634633342,-179.58844375,0.00020506,2]
[313021016,1706634633354,-2769.96091857,0.00020506,2]
[313021017,1706634633365,-330.54260284,0.00020507,2]
[313021018,1706634633376,-1044.84274835,0.00020581,2]
[313021019,1706634633388,-459.55495517,0.00020581,2]
[313021020,1706634633399,-1238.71609175,0.00020591,2]
[313021021,1706634633411,-603.4535756,0.00020741,2]
[313021022,1706634633422,-195.14799577,0.000209,2]
[313021023,1706634633640,-200.0,0.00021525,7]
[313021024,1706634633652,-155.00775039,0.00021772,2]
[313021025,1706634633665,-903.64556093,0.00021784,2]
[313021026,1706634633676,-850.15117202,0.00022,2]
[313021027,1706634633688,-917.55353193,0.00022,2]
[313021028,1706634633699,-280.0,0.00023678,7]
[313021029,1706634633709,-159.29949,0.00025318,2]
[313021030,1706634633720,-8517.38953251,0.00025436,2]
[313021031,1706634633731,-2247.43463281,0.00025436,2]
[313021032,1706634633744,-391.0,0.00026045,7]
[313021033,1706634633755,-2022.29091509,0.00026542,2]
[313021034,1706634633767,-763.24520182,0.00026545,5]
[313021035,1706634633778,-978.95259375,0.00027356,2]
[313021036,1706634633789,-679.2164194,0.00028607,2]
[313021037,1706634633799,-5000.0,0.00028609,5]
[313021038,1706634633932,-2077.00381468,0.00028613,2]
[313021039,1706634633948,-471.27847094,0.00028614,2]
[313021040,1706634633957,-57132.31357473,0.00028615,2]
[313021041,1706634634003,-26680.99027907,0.00028615,2]
[313021042,1706634634013,-235.56020887,0.00028615,2]
[313021043,1706634634022,-157623.67417181,0.00028616,2]
[313021063,1706634637963,-43648.7541048,0.00028616,2]
[313021064,1706634637973,-200.0,0.0002865,15]
[313021065,1706634637982,-348.0,0.0002865,15]
[313021066,1706634637991,-418.069462,0.00029258,2]
[313021067,1706634638002,-234.6232533,0.00029315,2]
[313021068,1706634638011,-199.5795051,0.00029315,2]
[313021069,1706634638021,-155.02015262,0.00029347,2]
[313021071,1706634638030,-262.12037239,0.00029494,2]
[313021072,1706634638040,-7968.22560607,0.00029494,2]
[313021073,1706634638049,-1856.25502519,0.00029494,2]
[313021074,1706634638058,-213.63828933,0.00029494,2]
[313021075,1706634638067,-155.17453603,0.00029494,2]
[313021076,1706634638076,-303.54991062,0.00029494,2]
[313021077,1706634638085,-155.69026299,0.00029494,2]
[313021078,1706634638094,-155.01085076,0.00029494,2]
[313021079,1706634638103,-242.39341789,0.00029494,2]
[313021080,1706634638112,-9039.40603719,0.00029494,2]
[313021081,1706634638122,-1485.05811791,0.00029494,2]
[313021082,1706634638131,-1268.12169078,0.00029494,2]
[313021083,1706634638140,-177.603831,0.000295,2]
[313021084,1706634638149,-151.00453014,0.00029614,7]
[313021085,1706634638159,-155.23328726,0.0002971,3]
[313021086,1706634638168,-283.97615034,0.00029786,2]
[313021087,1706634638178,-309.9690031,0.00029787,2]
[313021088,1706634638187,-309.9690031,0.00029787,2]
[313021089,1706634638197,-840.95,0.0002999,3]
[313021090,1706634638206,-3340.9928411,0.0003,2]
[313021091,1706634638216,-689.49476826,0.0003,4]
[313021092,1706634638225,-2374.95091436,0.0003,2]
[313021093,1706634638234,-244.61431091,0.0003,4]
[313021094,1706634638243,-154.90705577,0.0003,2]
[313021095,1706634638254,-910.12089925,0.0003,7]
[313021096,1706634638263,-11550.0,0.0003,7]
[313021097,1706634638273,-267.0,0.0003,2]
[313021098,1706634638282,-723.596918,0.000301,11]
[313021099,1706634638291,-500.0,0.0003012,11]
[313021100,1706634638300,-157.894736,0.00030137,2]
[313021101,1706634638310,-500.0,0.0003014,11]
[313021102,1706634638319,-500.0,0.0003016,11]
[313021103,1706634638328,-500.0,0.0003018,11]
[313021104,1706634638337,-500.0,0.000302,11]
[313021105,1706634638346,-151.00453014,0.00030219,4]
[313021106,1706634638355,-608.38496661,0.00030297,7]
[313021107,1706634638364,-160.5310452,0.00030297,7]
[313021108,1706634638374,-438.9404526,0.00030297,7]
[313021109,1706634638383,-1200.0,0.00030298,4]
[313021110,1706634638392,-634.42840415,0.00030299,2]
[313021111,1706634638402,-155.80457916,0.00030299,4]
[313021112,1706634638411,-172.32028985,0.00030299,4]
[313021113,1706634638420,-3519.18054344,0.00030299,4]
[313021114,1706634638431,-177.25672105,0.00030299,4]
[313021115,1706634638440,-300.0,0.00030299,4]
[313021116,1706634638450,-2591.97406488,0.0003038,5]
[313021117,1706634638460,-624.05647459,0.00030392,2]
[313021118,1706634638469,-155.02170304,0.00030395,4]
[313021119,1706634638478,-362.37957855,0.00030395,30]
[313021120,1706634638487,-310.02170152,0.00030395,4]
[313021121,1706634638497,-5214.02314025,0.00030395,4]
[313021122,1706634638507,-156.27626814,0.00030395,4]
[313021123,1706634638516,-2105.7958969,0.00030395,4]
[313021124,1706634638525,-1951.83365289,0.00030396,4]
[313021125,1706634638534,-308.81555806,0.00030397,4]
[313021126,1706634638543,-310.02945188,0.00030397,4]
[313021127,1706634638552,-650.24391054,0.00030397,14]
[313021128,1706634638561,-155.12462204,0.00030397,4]
[313021129,1706634638570,-309.72125088,0.00030397,4]
[313021130,1706634638579,-155.16797242,0.00030397,4]
[313021131,1706634638589,-309.72125088,0.00030397,4]
[313021132,1706634638598,-200.30997645,0.00030397,4]
[313021133,1706634638606,-155.11338698,0.00030397,4]
[313021134,1706634638616,-271.31960162,0.00030397,4]
[313021135,1706634638625,-155.13836492,0.00030397,4]
[313021136,1706634638634,-230.4636117,0.00030397,4]
[313021137,1706634638644,-312.70076968,0.00030397,10]
[313021138,1706634638653,-303.44764353,0.00030397,4]
[313021139,1706634638662,-155.02170276,0.00030397,4]
[313021140,1706634638671,-155.70723413,0.00030398,4]
[313021141,1706634638680,-65348.79764036,0.00030399,3]
[313021142,1706634638689,-151.0,0.00030399,2]
[313021143,1706634638698,-61458.5423,0.0003044,3]
[313021144,1706634638708,-151.0,0.00030448,2]
[313021145,1706634638717,-4740.7593213,0.000305,2]
[313021146,1706634638726,-4000.00000039,0.000307,2]
[313021147,1706634638734,-157.894736,0.00030746,2]
[313021148,1706634638743,-151.00453014,0.00030835,2]
[313021149,1706634638753,-792.53773472,0.000309,7]
[313021150,1706634638762,-151.0,0.000309,2]
[313021151,1706634638771,-33233.16498743,0.000309,3]
[313021152,1706634638780,-54929.91689618,0.00030999,3]
[313021153,1706634638789,-1386.67487204,0.00030999,3]
[313021154,1706634638798,-151.0,0.00030999,2]
[313021155,1706634638807,-151.0,0.00030999,2]
[313021156,1706634638816,-151.0,0.00030999,2]
[313021157,1706634638826,-151.0,0.00030999,2]
[313021158,1706634638834,-151.0,0.00030999,2]
[313021159,1706634638843,-161.43393847,0.00031,4]
[313021160,1706634638853,-1944.999999,0.00031,2]
[313021161,1706634638861,-5000.0,0.00031,7]
[313021162,1706634638870,-34000.0,0.00031,7]
[313021163,1706634638879,-300.0,0.00031,2]
[313021164,1706634638889,-320.2859555,0.00031,2]
[313021165,1706634638898,-2500.0,0.00031,10]
[313021166,1706634638908,-1000.0,0.00031,3]
[313021167,1706634638917,-160.0,0.00031,2]
[313021168,1706634638926,-30280.55633231,0.00031,2]
[313021445,1706634642841,-9489.34905131,0.00031,2]
[313021446,1706634642900,-1339.23745426,0.00031,2]
[313021474,1706634647435,-2662.80462274,0.00030998,4]
[313021475,1706634647444,-2790.60013489,0.00030999,4]
[313021476,1706634647456,-38099.68689445,0.00030999,4]
[313021477,1706634647465,-462687.92527847,0.00031,2]
[313021478,1706634647476,-6554.89701418,0.00031,2]
[313021479,1706634647487,-4330.05707255,0.00031,2]
[313021480,1706634647501,-3090.02476951,0.00031,2]
[313021521,1706635181872,680.7197232,0.00019776,2]
[313021537,1706635260350,156.0261563,0.00019087,2]
[313021543,1706635370568,209.034731,0.00019534,2]
[313021546,1706635461079,296.73934084,0.00020423,2]
[313021557,1706635537704,904.83318342,0.000205,2]
[313021558,1706635539572,155.00155002,0.000205,2]
[313021559,1706635552327,1586.35135048,0.000205,2]
[313021560,1706635554493,1581.46279222,0.000205,2]
[313021561,1706635556805,4819.97769138,0.000205,2]
[313021563,1706635565158,183.53,0.00020493,3]
[313021564,1706635565477,900.0,0.00019509,2]
[313021566,1706635577404,152.94,0.00020493,3]
[313021568,1706635583373,213.72676045,0.000205,2]
[313021569,1706635583591,18927.35300975,0.000205,2]
[313021570,1706635586798,1996.16717164,0.000205,2]
[313021571,1706635589042,764.74,0.00020493,3]
[313021572,1706635589428,213.37686949,0.00020403,2]
[313021576,1706635594249,166.90788547,0.000205,2]
[313021578,1706635610613,83813.3038538,0.000205,2]
[313021579,1706635614446,20899.05725792,0.000205,2]
[313021580,1706635620865,1586.35135048,0.000205,2]
[313021581,1706635627526,589.1714927,0.000205,2]
[313021584,1706635634517,19889.78216214,0.000205,2]
[313021586,1706635635477,7970.65505241,0.000205,2]
[313021592,1706635652895,562.3258598,0.000205,2]
[313021594,1706635700229,161.25377487,0.000205,2]
[313021595,1706635707167,155.00155002,0.000205,2]
[313021596,1706635711589,155.00155002,0.000205,2]
[313021597,1706635713520,494.9489016,0.000205,2]
[313021599,1706635723610,1268.60769879,0.000205,2]
[313021604,1706635770810,7991.47294273,0.00020401,2]
[313021660,1706635832013,-4816.84748752,0.00020501,2]
[313021662,1706635832023,-861.10658983,0.00020501,2]
[313021665,1706635832032,-620.0257606,0.00020501,2]
[313021667,1706635832042,-213.54981821,0.00020501,2]
[313021669,1706635832051,-18915.00160237,0.00020501,2]
[313021671,1706635832061,-1788.91397042,0.00020501,2]
[313021673,1706635832070,-271.25670755,0.00020501,2]